bitfinex/quotes_ETHUSD_20250123
["timestamp","ask_amount","ask_price","bid_price","bid_amount"]
[1737612591711,5.24,3212.1,3211.9,3.11335]
[1737612592436,5.24,3212.1,3212.0,3.11332]
[1737612592637,5.24,3212.1,3212.0,3.93252]
[1737612592816,5.24,3212.7,3212.1,3.11313]
[1737612593020,5.24,3212.7,3212.2,3.11306]
[1737612593517,3.73189378,3212.8,3212.4,3.11293]
[1737612593518,5.85933378,3212.8,3212.4,3.11293]
[1737612593708,5.85933378,3212.8,3212.5,0.8192]
[1737612593909,5.85933378,3212.8,3212.5,3.93203]
[1737612595418,5.85933378,3212.8,3212.5,0.8192]
[1737612601444,5.85933378,3212.8,3212.3,3.93222]
[1737612603043,5.85933378,3212.8,3212.3,0.8192]
[1737612603244,5.85933378,3212.8,3212.5,3.11283]
[1737612603946,5.85933378,3212.8,3212.3,3.93222]
[1737612604117,5.85933378,3212.8,3212.4,3.11291]
[1737612605545,5.85933378,3212.8,3212.3,3.93222]
[1737612605765,3.11281,3212.6,3212.3,0.276]
[1737612606963,3.11281,3212.6,3211.7,3.8098]
[1737612607166,3.11295,3212.4,3211.9,3.0]
[1737612608260,3.1131,3212.3,3212.0,0.267]
[1737612608568,5.24,3212.2,3212.0,3.11331]
[1737612609137,5.24,3212.2,3212.1,3.11322]
[1737612609361,5.24,3212.7,3212.3,3.11297]
[1737612610070,5.24,3212.7,3212.4,35.0]
[1737612610437,5.24,3212.7,3212.3,3.11297]
[1737612612337,5.24,3212.7,3212.4,3.1129]
[1737612612590,5.24,3212.7,3212.6,0.8098]
[1737612614574,5.24,3213.0,3212.6,0.8098]
[1737612614939,6.65066004,3213.1,3212.7,3.11258]
[1737612615140,5.24,3213.1,3212.7,3.11258]
[1737612616281,5.24,3213.1,3212.6,0.8098]
[1737612616492,5.24,3213.1,3212.6,3.92251]
[1737612620595,5.24,3213.1,3212.7,3.11263]
[1737612621190,5.24,3213.4,3213.0,3.11235]
[1737612621489,6.99688769,3213.5,3213.4,3.11196]
[1737612621786,6.99688769,3213.5,3213.4,4.18656]
[1737612622018,6.99688769,3213.5,3213.4,7.18656]
[1737612622618,6.99688769,3213.5,3213.4,7.3110556]
[1737612623418,6.99688769,3213.5,3213.4,4.3110556]
[1737612623916,6.99688769,3213.5,3213.4,4.18656]
[1737612626317,6.99688769,3213.5,3213.4,1.0746]
[1737612626506,6.99688769,3213.5,3213.4,0.267]
[1737612628239,6.99688769,3213.5,3213.4,3.37896]
[1737612628389,6.99688769,3213.5,3213.4,4.18656]
[1737612629086,6.99688769,3213.5,3213.4,4.21767592]
[1737612629297,6.99688769,3213.5,3213.4,4.18656]
[1737612629928,6.99688769,3213.5,3213.4,4.31066078]
[1737612631232,6.99688769,3213.5,3213.4,4.89177671]
[1737612631537,7.69e-06,3213.5,3213.4,5.29105837]
[1737612631824,7.69e-06,3213.5,3213.4,40.29105837]
[1737612632023,7.69e-06,3213.5,3213.4,40.87566967]
[1737612632325,3.74054034,3215.4,3214.9,3.11042]
[1737612632326,0.63047034,3215.4,3214.9,3.11042]
[1737612632524,0.819,3215.5,3215.0,3.40844042]
[1737612632931,5.24,3215.7,3215.1,3.11029]
[1737612633423,3.10924,3216.3,3215.5,3.10985]
[1737612633636,3.10924,3216.3,3215.6,3.14083264]
[1737612633835,0.76728735,3216.3,3215.7,3.10971]
[1737612633996,0.76728735,3216.3,3215.8,0.03109264]
[1737612634343,0.76728735,3216.3,3215.8,3.14073264]
[1737612634648,3.87648735,3216.3,3215.6,3.10974]
[1737612635015,3.87648735,3216.3,3215.6,3.14083264]
[1737612635332,0.38764874,3216.2,3215.6,3.14083264]
[1737612635700,3.10897,3216.5,3215.8,3.10962]
[1737612636054,1.242727,3217.4,3216.6,3.10885]
[1737612636345,1.242727,3217.4,3216.7,0.29808338]
[1737612636631,3.10825,3217.3,3216.7,0.29808338]
[1737612636789,3.10825,3217.3,3216.7,0.267]
[1737612638392,0.45254524,3217.4,3216.8,0.03108337]
[1737612638794,3.10811,3217.4,3216.8,0.03108337]
[1737612639001,3.10822,3217.3,3216.8,0.03108337]
[1737612639635,0.8092,3217.5,3216.8,0.03108337]
[1737612639821,3.10831,3217.2,3216.8,0.03108337]
[1737612641013,3.10831,3217.2,3216.7,0.267]
[1737612641339,0.621643,3217.2,3216.7,0.267]
[1737612641708,3.10848,3217.0,3216.7,0.267]
[1737612642716,3.10848,3217.0,3216.5,0.8286]
[1737612642925,5.24,3217.1,3216.6,0.277]
[1737612643825,3.10881,3216.7,3216.6,0.277]
[1737612644011,3.500611,3216.7,3216.6,0.277]
[1737612644339,3.10898,3216.5,3216.4,0.277]
[1737612645923,3.10898,3216.5,3216.2,0.277]
[1737612646657,3.1091,3216.4,3216.2,0.277]
[1737612647139,3.10907,3216.4,3216.2,0.277]
[1737612647535,3.10907,3216.4,3216.3,0.277]
[1737612649654,8.34888,3216.6,3216.4,0.7635]
[1737612649955,5.24,3216.6,3216.4,0.7635]
[1737612650319,3.10896,3216.5,3216.3,0.277]
[1737612650648,0.524,3216.5,3216.3,0.277]
[1737612650824,3.10906,3216.4,3216.3,0.27432539]
[1737612651163,0.524,3216.5,3216.3,0.27432539]
[1737612651324,5.24,3216.6,3216.3,0.27432539]
[1737612651524,3.10897,3216.5,3216.3,0.27432539]
[1737612651738,3.10906,3216.4,3216.3,0.27432539]
[1737612652138,3.10897,3216.5,3216.3,0.27432539]
[1737612653660,3.10906,3216.4,3216.3,0.27432539]
[1737612654284,3.10897,3216.5,3216.3,0.27432539]
[1737612654727,3.10906,3216.4,3216.3,0.27432539]
[1737612658344,3.05906,3216.4,3216.3,0.27432539]
[1737612658543,3.10945,3216.0,3215.5,0.7635]
[1737612658758,3.10976,3215.7,3215.6,0.277]
[1737612658933,3.10983,3215.6,3215.5,0.277]
[1737612660562,3.11012,3215.4,3215.3,0.277]
[1737612661398,3.10983,3215.6,3215.3,0.277]
[1737612662374,3.10983,3215.6,3215.4,0.12388023]
[1737612663368,3.10983,3215.6,3215.3,0.277]
[1737612663671,3.10995,3215.5,3215.3,0.277]
[1737612664769,3.10995,3215.5,3215.4,35.0]
[1737612665138,3.10983,3215.6,3215.4,35.0]
[1737612666243,3.10995,3215.5,3215.3,0.277]
[1737612666455,3.10983,3215.6,3215.3,0.277]
[1737612666654,3.10983,3215.6,3215.3,35.277]
[1737612667000,3.10983,3215.6,3215.4,0.292]
[1737612667145,8.34967,3215.8,3215.4,0.292]
[1737612667349,5.24,3215.8,3215.5,0.7935]
[1737612667544,5.24,3215.8,3215.6,35.0]
[1737612667967,3.92545,3216.5,3215.8,0.7935]
[1737612668161,3.109,3216.5,3215.9,0.03109165]
[1737612668531,3.109,3216.5,3216.0,35.0]
[1737612668736,3.109,3216.5,3216.1,0.03109015]
[1737612669344,3.109,3216.5,3216.2,0.12386167]
[1737612669549,3.10881,3216.7,3216.2,0.12386167]
[1737612669765,8.34861,3216.9,3216.3,0.82459016]
[1737612669966,3.10873,3216.8,3216.3,0.7935]
[1737612670168,5.24,3216.9,3216.3,0.7935]
[1737612670469,5.24,3216.9,3216.3,3.90265]
[1737612670648,5.24,3216.9,3216.3,3.93373592]
[1737612670862,8.34857,3217.0,3216.4,0.12386167]
[1737612671465,3.10864,3216.9,3216.4,0.12386167]
[1737612671666,8.34857,3217.0,3216.4,0.12386167]
[1737612671884,8.34857,3217.0,3216.5,0.12386167]
[1737612672080,5.24,3217.0,3216.5,0.1549476]
[1737612672455,5.24,3217.0,3216.8,3.1086]
[1737612672656,5.24,3217.0,3216.9,0.292]
[1737612673157,8.34848,3217.0,3216.9,0.292]
[1737612673955,3.10877,3216.7,3216.6,0.12386167]
[1737612674256,3.1086,3216.9,3216.6,0.12386167]
[1737612674768,3.1086,3216.9,3216.5,0.292]
[1737612675487,5.24,3217.0,3216.5,0.292]
[1737612675856,5.24,3217.0,3216.6,0.7935]
[1737612676857,3.10829,3217.3,3216.7,0.292]
[1737612677064,6.0564,3217.4,3216.7,0.292]
[1737612677263,6.0564,3217.4,3216.8,0.7935]
[1737612677480,3.10835,3217.2,3216.8,0.7935]
[1737612677687,3.10835,3217.2,3216.8,0.82458372]
[1737612678493,3.10835,3217.2,3216.8,0.7935]
[1737612678670,8.3481,3217.4,3216.8,0.7935]
[1737612679075,3.10823,3217.3,3216.8,0.7935]
[1737612679273,3.10823,3217.3,3216.7,0.292]
[1737612679274,3.10839,3217.1,3216.7,0.292]
[1737612679483,3.10819,3217.3,3216.7,0.292]
[1737612679687,3.10838,3217.2,3216.7,0.32308427]
[1737612680016,3.10838,3217.2,3216.7,0.292]
[1737612680315,3.10819,3217.3,3216.7,0.32308427]
[1737612680769,3.10819,3217.3,3216.7,3.43182427]
[1737612680971,5.24,3217.4,3216.7,3.43182427]
[1737612681175,5.24,3217.4,3216.7,0.32308427]
[1737612681362,5.24,3217.9,3217.0,0.7844]
[1737612681568,3.10772,3217.8,3217.1,3.13942093]
[1737612682186,3.10772,3217.8,3217.2,3.10829]
[1737612682365,3.10772,3217.8,3217.3,0.03107831]
[1737612683302,3.10772,3217.8,3217.2,3.10829]
[1737612683669,3.10782,3217.7,3217.2,3.10829]
[1737612683870,3.10782,3217.7,3217.1,3.03107832]
[1737612684061,3.10782,3217.7,3217.1,6.10837]
[1737612684477,3.10782,3217.7,3217.2,0.292]
[1737612685992,8.34764,3217.9,3217.2,3.43134834]
[1737612686187,0.00454023,3218.0,3217.4,0.7844]
[1737612686391,0.00454023,3218.0,3217.7,3.1078]
[1737612686587,0.00454023,3218.0,3217.7,3.13887427]
[1737612686794,0.00454023,3218.0,3217.9,3.10761]
[1737612686963,0.00454023,3218.0,3217.9,7.4730793]
[1737612687171,0.00454023,3218.0,3217.9,7.44201]
[1737612687376,0.00454023,3218.0,3217.9,6.89201]
[1737612687600,0.00454023,3218.0,3217.9,41.89201]
[1737612691097,0.00454023,3218.0,3215.4,0.7844]
[1737612691098,0.4529,3217.7,3215.4,0.7844]
[1737612691405,0.4529,3217.2,3216.2,3.10916]
[1737612691579,3.10823,3217.3,3216.2,0.03109055]
[1737612691773,3.56082,3217.6,3216.5,0.7844]
[1737612691975,3.108,3217.5,3216.6,3.13988255]
[1737612692396,3.10809,3217.4,3216.9,35.0]
[1737612692602,3.10821,3217.3,3216.9,35.0]
[1737612692903,0.4529,3217.6,3216.9,35.0]
[1737612693107,3.10848,3217.0,3216.9,35.0]
[1737612694584,3.68690118,3217.0,3216.9,35.0]
[1737612695407,3.10848,3217.0,3216.9,35.0]
[1737612699176,3.86128,3217.0,3216.9,35.0]
[1737612700687,4.48779096,3217.0,3216.9,35.0]
[1737612701684,7.42831949,3217.0,3216.9,35.0]
[1737612702518,10.42831949,3217.0,3216.9,35.0]
[1737612702715,3.10944,3216.1,3215.8,1.1138]
[1737612702920,2.94052853,3216.3,3215.8,1.1138]
[1737612703416,6.04940853,3216.6,3215.9,3.14055339]
[1737612703784,2.94052853,3216.3,3215.8,1.1138]
[1737612703989,2.94052853,3216.3,3215.9,0.03109201]
[1737612704222,2.94052853,3216.3,3215.8,1.1138]
[1737612704624,3.10936,3216.1,3215.8,1.1138]
[1737612704917,6.04970853,3216.3,3215.8,1.1138]
[1737612705088,2.94052853,3216.3,3215.8,1.1138]
[1737612705288,2.94052853,3216.3,3215.9,3.10946]
[1737612705516,2.94052853,3216.6,3215.9,3.45346]
[1737612705823,3.109,3216.5,3216.0,0.344]
[1737612706029,2.94052853,3216.6,3216.0,0.344]
[1737612706191,3.10908,3216.4,3216.0,0.344]
[1737612706909,3.10908,3216.4,3215.9,0.0310918]
[1737612707110,3.10908,3216.4,3215.9,0.344]
[1737612707305,6.04977853,3216.3,3215.9,0.344]
[1737612707513,3.10935,3216.2,3215.9,0.344]
[1737612707712,6.04968853,3216.3,3215.9,0.344]
[1737612708637,6.04968853,3216.3,3215.8,0.7698]
[1737612708930,6.04968853,3216.3,3215.8,1.1138]
[1737612709139,2.94052853,3216.3,3215.8,4.25452298]
[1737612709357,2.94052853,3216.3,3215.9,3.10947]
[1737612709643,3.10887,3216.6,3215.8,1.1138]
[1737612709837,3.10909,3216.4,3215.8,1.1138]
[1737612710134,3.10917,3216.3,3215.8,1.1138]
[1737612710441,3.10936,3216.1,3215.8,0.7698]
[1737612710637,3.10946,3216.0,3215.8,1.1138]
[1737612710943,3.10936,3216.1,3215.8,0.7698]
[1737612711242,3.10936,3216.1,3215.7,0.344]
[1737612711599,3.10917,3216.3,3215.6,3.45376]
[1737612713943,3.10926,3216.2,3215.6,3.45376]
[1737612714141,3.10855,3217.0,3216.3,3.10914]
[1737612714306,1.145686,3217.0,3216.5,0.7698]
[1737612714507,8.34831,3217.2,3216.5,3.87869]
[1737612716333,3.10845,3217.1,3216.5,3.87869]
[1737612718024,3.1085,3217.0,3216.5,0.7698]
[1737612718447,3.1085,3217.0,3216.5,3.87876]
[1737612718627,8.18052853,3217.2,3216.5,3.87876]
[1737612718838,3.10839,3217.1,3216.5,3.87876]
[1737612719022,3.10848,3217.0,3216.5,0.7698]
[1737612719847,9.38468438,3217.2,3216.5,0.7698]
[1737612720028,3.10854,3217.0,3216.5,0.7698]
[1737612720227,3.10858,3216.9,3216.5,0.7698]
[1737612720545,3.1084,3217.1,3216.5,3.43593]
[1737612721118,3.1085,3217.0,3216.5,3.43593]
[1737612721940,4.35781844,3217.0,3216.5,0.327]
[1737612724059,3.10858,3216.9,3216.5,0.327]
[1737612724853,6.04910853,3216.9,3216.5,0.327]
[1737612725153,3.10878,3216.7,3216.0,3.10944]
[1737612725352,3.10897,3216.5,3216.0,0.327]
[1737612725924,0.389278,3216.6,3216.0,3.43644]
[1737612726116,3.10878,3216.7,3216.0,3.43644]
[1737612726323,3.10893,3216.6,3216.0,3.43644]
[1737612728125,3.10893,3216.6,3216.0,3.10944]
[1737612730255,3.10878,3216.7,3216.0,3.10944]
[1737612730453,8.34878,3216.7,3216.0,3.10944]
[1737612730656,0.913278,3216.6,3216.0,3.10944]
[1737612730866,0.913278,3216.6,3216.1,3.10934]
[1737612732280,4.022158,3216.6,3216.1,3.10934]
[1737612733131,0.913278,3216.6,3216.0,3.42243]
[1737612733327,4.022168,3216.6,3216.0,0.313]
[1737612733562,0.9262168,3216.5,3216.0,0.313]
[1737612733745,4.0352468,3216.5,3216.0,0.313]
[1737612734155,0.9262168,3216.5,3216.0,0.313]
[1737612734353,4.0351968,3216.5,3216.0,0.313]
[1737612734552,0.9262168,3216.5,3216.0,0.313]
[1737612734765,0.49483848,3216.4,3216.0,0.313]
[1737612734930,3.60395848,3216.4,3216.0,0.313]
[1737612735736,0.49483848,3216.4,3216.0,0.313]
[1737612738176,3.60391848,3216.4,3216.0,0.313]
[1737612739166,3.10918,3216.3,3216.0,0.313]
[1737612739337,3.87311153,3216.3,3216.0,0.313]
[1737612740166,3.87311153,3216.3,3215.9,0.7841]
[1737612740340,3.10932,3216.2,3215.9,1.0971]
[1737612740535,3.87311153,3216.3,3215.9,0.313]
[1737612740743,3.10936,3216.1,3215.8,0.313]
[1737612740954,3.80760715,3216.1,3215.7,0.313]
[1737612741159,3.10949,3216.0,3215.7,0.313]
[1737612741341,3.10949,3216.0,3215.6,0.807]
[1737612741538,3.1097,3215.8,3215.3,0.807]
[1737612741867,8.34947,3216.0,3215.5,0.313]
[1737612742102,9.64549072,3216.0,3215.5,0.313]
[1737612743476,3.10961,3215.9,3215.5,0.313]
[1737612743766,9.64549072,3216.0,3215.5,0.313]
[1737612743767,6.53602072,3216.0,3215.5,0.313]
[1737612743972,9.64548072,3216.0,3215.5,0.313]
[1737612744169,6.53602072,3216.0,3215.5,0.313]
[1737612744369,5.24,3216.0,3215.6,3.9168]
[1737612744869,5.24,3216.0,3215.6,7.02657]
[1737612745177,5.24,3216.0,3215.7,3.10972]
[1737612745381,5.24,3216.3,3215.7,0.03109574]
[1737612745553,6.04998853,3216.0,3215.5,0.313]
[1737612745754,3.10946,3216.0,3215.5,0.313]
[1737612746177,3.99364585,3216.2,3215.5,0.313]
[1737612746381,3.99364585,3216.2,3215.6,0.8159]
[1737612747904,3.10938,3216.1,3215.6,0.8159]
[1737612748202,1.58920544,3216.1,3215.6,0.8159]
[1737612748899,3.10946,3216.0,3215.6,0.8159]
[1737612751402,3.10893,3216.6,3215.8,0.8159]
[1737612751605,8.3488,3216.7,3216.1,3.10934]
[1737612751905,5.24,3216.7,3216.1,3.14043021]
[1737612752283,3.10854,3217.0,3216.3,0.8159]
[1737612752626,3.10854,3217.0,3216.4,3.10899]
[1737612752771,5.24,3217.2,3216.5,3.10888]
[1737612752974,6.21589,3217.6,3216.9,0.8159]
[1737612753207,4.62895185,3217.6,3217.0,0.298]
[1737612753370,1.52103185,3217.6,3217.0,0.298]
[1737612753579,1.52103185,3217.6,3217.0,3.40648]
[1737612753797,1.52103185,3217.6,3217.0,3.43756066]
[1737612754113,1.52103185,3217.6,3217.0,3.40648]
[1737612754404,8.34785,3217.7,3217.1,0.8159]
[1737612754704,5.24,3217.7,3217.1,0.8159]
[1737612754907,3.10793,3217.6,3217.1,0.8159]
[1737612755715,5.24,3217.7,3217.1,0.8159]
[1737612756052,3.10801,3217.5,3217.1,0.8159]
[1737612756328,5.24,3217.7,3217.2,0.03108234]
[1737612756479,5.24,3217.7,3217.3,3.10816]
[1737612756900,0.00454023,3218.0,3217.6,0.804]
[1737612757489,0.00454023,3218.0,3217.6,0.83507559]
[1737612757684,0.00454023,3218.0,3217.6,0.804]
[1737612761531,3.11206023,3218.0,3217.7,0.313]
[1737612762032,0.00454023,3218.0,3217.7,0.313]
[1737612763654,3.10761,3217.9,3217.7,0.313]
[1737612764318,0.00454023,3218.0,3217.7,0.313]
[1737612764518,0.00454023,3218.0,3217.6,0.804]
[1737612764717,0.00454023,3218.0,3217.6,1.117]
[1737612765405,3.73400325,3218.0,3217.7,0.313]
[1737612765605,3.1078,3217.8,3217.7,0.313]
[1737612766333,0.62647325,3218.0,3217.6,0.804]
[1737612766533,0.00454023,3218.0,3217.3,0.313]
[1737612766735,3.10809,3217.4,3217.3,0.313]
[1737612767147,3.10809,3217.4,3216.3,0.97649296]
[1737612767148,2.94052853,3217.6,3216.6,0.7878]
[1737612767313,3.10858,3217.0,3216.6,0.7878]
[1737612767514,3.71349085,3217.0,3216.6,0.7878]
[1737612767737,3.10865,3216.9,3216.6,0.7878]
[1737612767903,3.10858,3217.0,3216.6,0.7878]
[1737612768345,3.10858,3217.0,3216.6,0.81888544]
[1737612768548,3.10858,3217.0,3216.7,35.0]
[1737612769041,3.1083,3217.2,3216.7,35.0]
[1737612769248,3.10848,3217.0,3216.7,35.0]
[1737612769434,3.10811,3217.4,3216.8,0.7878]
[1737612769612,3.10811,3217.4,3216.8,0.8188828]
[1737612769808,3.10811,3217.4,3216.8,3.9275428]
[1737612770012,3.10811,3217.4,3216.9,35.0]
[1737612770212,3.10793,3217.6,3217.0,0.0310814]
[1737612770432,3.10793,3217.6,3217.1,0.7878]
[1737612770643,3.1081,3217.4,3217.1,0.7878]
[1737612771050,3.1081,3217.4,3217.2,35.0]
[1737612771547,2.94052853,3217.8,3217.2,35.0]
[1737612771548,3.10773,3217.8,3217.2,35.0]
[1737612771865,3.10783,3217.7,3217.2,35.0]
[1737612772074,3.10818,3217.4,3217.2,35.0]
[1737612772346,3.10819,3217.3,3217.2,35.0]
[1737612774117,2.8576,3217.5,3217.2,35.7878]
[1737612774847,3.10781,3217.7,3217.2,35.7878]
[1737612776438,3.10791,3217.6,3217.2,35.7878]
[1737612781553,3.10819,3217.3,3217.2,35.0]
[1737612782835,3.10808,3217.5,3217.2,35.0]
[1737612784728,3.10808,3217.5,3217.0,0.313]
[1737612784930,3.10794,3217.6,3217.0,0.313]
[1737612785169,3.10794,3217.6,3217.1,35.0]
[1737612785642,3.10802,3217.5,3217.1,35.0]
[1737612786450,3.10783,3217.7,3217.1,35.0]
[1737612786638,3.10791,3217.6,3217.1,35.0]
[1737612786848,3.10811,3217.4,3217.1,35.0]
[1737612787170,3.1082,3217.3,3217.1,35.0]
[1737612787741,3.10806,3217.5,3217.1,35.0]
[1737612787939,3.1081,3217.4,3217.1,35.0]
[1737612788572,3.10829,3217.2,3217.1,35.0]
[1737612790875,3.1081,3217.4,3217.1,35.0]
[1737612791074,3.10794,3217.6,3217.1,35.0]
[1737612791377,3.10803,3217.5,3217.1,35.0]
[1737612794250,3.10803,3217.5,3217.2,0.55]
[1737612794869,8.34781,3217.7,3217.4,0.55]
[1737612795067,8.34781,3217.7,3217.5,0.813]
[1737612795276,8.34781,3217.7,3217.6,0.55]
[1737612795470,8.34781,3217.7,3217.1,0.813]
[1737612795679,3.10792,3217.6,3217.1,1.363]
[1737612795878,3.10792,3217.6,3217.3,0.55]
[1737612796282,3.10792,3217.6,3217.2,0.67413285]
[1737612796650,3.10792,3217.6,3217.4,0.55]
[1737612797184,3.10808,3217.5,3217.3,0.55]
[1737612797379,3.10808,3217.5,3217.2,0.12413285]
[1737612797380,3.10809,3217.4,3217.2,0.12413285]
[1737612797569,3.10809,3217.4,3217.3,0.55]
[1737612797946,3.10809,3217.4,3216.8,0.813]
[1737612798151,3.10871,3216.8,3216.5,0.813]
[1737612798351,3.10879,3216.7,3216.3,0.31]
[1737612798547,3.10879,3216.7,3216.4,35.0]
[1737612798775,3.10889,3216.6,3216.4,35.0]
[1737612799085,3.10892,3216.6,3216.5,0.12422295]
[1737612800182,3.1087,3216.8,3216.5,0.12422295]
[1737612800389,3.10878,3216.7,3216.6,0.55]
[1737612800766,3.10878,3216.7,3216.5,0.55]
[1737612801851,5.24,3217.1,3216.7,0.55]
[1737612802977,5.24,3217.1,3216.9,0.55]
[1737612803187,5.24,3217.1,3217.0,1.3236]
[1737612803963,5.24,3217.1,3217.0,0.55]
[1737612804698,8.34831,3217.2,3217.1,0.55]
[1737612804899,8.34831,3217.2,3216.7,0.7736]
[1737612808060,3.10839,3217.1,3216.8,0.55]
[1737612808691,3.10839,3217.1,3216.7,0.7736]
[1737612808889,3.10839,3217.1,3216.5,1.3236]
[1737612809210,3.10851,3217.0,3216.5,0.7736]
[1737612809414,3.1086,3216.9,3216.5,0.7736]
[1737612809560,3.1086,3216.9,3216.6,0.55]
[1737612809762,3.10874,3216.8,3216.6,35.55]
[1737612811815,3.10877,3216.7,3216.6,35.55]
[1737612812104,3.10874,3216.8,3216.4,0.295]
[1737612812469,3.10874,3216.8,3216.6,0.55]
[1737612813669,3.10877,3216.7,3216.6,0.55]
[1737612813905,3.10897,3216.5,3216.2,0.7736]
[1737612814199,3.10897,3216.5,3215.6,3.1098]
[1737612814200,3.10923,3216.3,3216.0,0.295]
[1737612814368,3.10923,3216.3,3216.1,35.0]
[1737612815121,3.10923,3216.3,3216.2,0.55]
[1737612815487,3.10897,3216.5,3216.1,0.55]
[1737612815688,3.1088,3216.7,3216.1,35.55]
[1737612815899,5.24,3216.8,3216.3,3.65909]
[1737612816503,8.3487,3216.8,3216.4,35.0]
[1737612816707,8.3487,3216.8,3216.5,0.55]
[1737612817004,8.3487,3216.8,3216.3,0.55]
[1737612817428,8.3487,3216.8,3216.5,0.55]
[1737612817817,8.3487,3216.8,3216.2,0.7912]
[1737612818011,3.10883,3216.7,3216.2,0.7912]
[1737612818407,3.10887,3216.6,3216.4,0.55]
[1737612818895,11.45745,3216.8,3216.4,0.55]
[1737612819101,3.10896,3216.5,3216.4,0.55]
[1737612819755,3.10896,3216.5,3216.3,35.12406807]
[1737612820028,3.10906,3216.4,3216.3,35.0]
[1737612820529,3.10906,3216.4,3216.3,35.55]
[1737612821033,3.10906,3216.4,3216.3,0.55]
[1737612821234,4.10598485,3216.4,3216.3,0.55]
[1737612822505,9.34598485,3216.4,3216.3,0.55]
[1737612825307,3.10945,3216.0,3215.7,1.0862]
[1737612825803,3.10945,3216.0,3215.8,0.55]
[1737612829529,3.10954,3215.9,3215.8,0.55]
[1737612830312,3.10937,3216.1,3215.8,0.55]
[1737612831243,5.24,3216.3,3215.8,0.55]
[1737612831443,5.24,3216.3,3216.0,0.55]
[1737612834481,8.34895,3216.6,3216.2,0.55]
[1737612834625,9.6092885,3216.6,3216.2,0.55]
[1737612834824,12.7182485,3216.6,3216.2,0.55]
[1737612835248,9.6092885,3216.6,3216.2,0.55]
[1737612835558,3.10899,3216.5,3216.2,0.55]
[1737612836130,3.10914,3216.4,3216.2,0.55]
[1737612836331,4.38098285,3216.4,3216.2,0.55]
[1737612836527,3.10916,3216.3,3215.8,0.7912]
[1737612836849,3.10916,3216.3,3216.0,0.28]
[1737612837729,3.10926,3216.2,3216.0,0.28]
[1737612838460,4.38097285,3216.4,3216.0,0.28]
[1737612838962,3.10927,3216.2,3216.0,0.28]
[1737612839169,3.10927,3216.2,3216.1,0.67429281]
[1737612840781,3.85829429,3216.2,3216.1,0.67429281]
[1737612841762,3.85829429,3216.2,3216.1,0.55]
[1737612842869,0.74902429,3216.2,3216.1,0.55]
[1737612843086,4.38097285,3216.4,3216.2,0.55]
[1737612843233,4.38097285,3216.4,3216.1,0.55]
[1737612843565,3.10913,3216.4,3216.1,1.3412]
[1737612844467,8.34887,3216.6,3216.1,1.3412]
[1737612845968,3.10898,3216.5,3216.1,1.3412]
[1737612846147,3.10898,3216.5,3216.2,0.1244585]
[1737612846337,3.10909,3216.4,3216.2,0.1244585]
[1737612846538,4.254886,3216.4,3216.2,0.1244585]
[1737612847646,4.254886,3216.4,3216.1,1.3412]
[1737612848173,3.1092,3216.3,3216.1,0.55]
[1737612848371,1.145796,3216.4,3216.1,0.55]
[1737612848574,5.24,3217.3,3216.7,0.55]
[1737612848886,0.60408,3217.2,3216.9,0.55]
[1737612849036,3.90897,3217.4,3216.9,0.55]
[1737612849436,0.8008,3217.4,3216.9,0.55]
[1737612849647,3.10819,3217.3,3216.5,0.7982]
[1737612849854,3.1085,3217.0,3216.6,0.55]
[1737612850254,3.1085,3217.0,3216.6,0.67425859]
[1737612850464,3.10819,3217.3,3216.8,0.55]
[1737612851043,3.10841,3217.1,3216.7,0.55]
[1737612851453,3.10849,3217.0,3216.7,0.55]
[1737612851790,3.10823,3217.3,3216.7,0.55]
[1737612851997,3.10842,3217.1,3216.7,0.55]
[1737612852365,3.10842,3217.1,3216.6,0.55]
[1737612853275,3.10842,3217.1,3216.7,0.12417899]
[1737612853482,3.10861,3216.9,3216.7,0.12417899]
[1737612854060,3.10861,3216.9,3216.6,0.55]
[1737612857201,3.10842,3217.1,3216.6,0.55]
[1737612858264,8.34842,3217.1,3216.6,0.55]
[1737612858602,3.10848,3217.0,3216.6,0.55]
[1737612858836,3.10851,3217.0,3216.6,0.55]
[1737612859729,5.24,3217.1,3216.6,0.55]
[1737612859894,5.24,3217.1,3216.7,0.55]
[1737612861479,5.24,3217.1,3216.8,0.12412078]
[1737612862583,5.24,3217.1,3216.7,0.55]
[1737612864114,8.34829,3217.2,3216.7,0.55]
[1737612866582,5.24,3217.2,3216.7,3.65871]
[1737612866922,5.24,3217.2,3216.9,0.55]
[1737612868616,8.34831,3217.2,3216.9,0.55]
[1737612869524,3.10839,3217.1,3216.9,0.55]
[1737612871491,4.25405,3217.1,3216.8,0.55]
[1737612871808,3.10858,3216.9,3216.7,0.271]
[1737612872199,3.10841,3217.1,3216.8,1.3736]
[1737612872393,5.24,3217.2,3216.8,1.3736]
[1737612872927,5.24,3217.2,3216.9,0.12419882]
[1737612873628,8.3483,3217.2,3216.9,0.12419882]
[1737612873991,8.3483,3217.2,3216.8,1.3736]
[1737612875240,5.24,3217.2,3216.8,1.3736]
[1737612876126,8.3482,3217.3,3216.8,1.3736]
[1737612876516,3.10829,3217.2,3216.8,1.3736]
[1737612877025,3.10829,3217.2,3217.0,0.55]